bitfinex/quotes_BTCUSD_20250303
["timestamp","ask_amount","ask_price","bid_price","bid_amount"]
[1740977020927,0.0003406,92907.0,92906.0,3.93771919]
[1740977022128,9e-07,92912.0,92911.0,0.5223]
[1740977022305,9e-07,92912.0,92911.0,0.6647911]
[1740977022504,9e-07,92912.0,92911.0,0.67153085]
[1740977022708,9e-07,92912.0,92911.0,0.70377833]
[1740977023090,9e-07,92912.0,92911.0,0.73612433]
[1740977024770,9e-07,92912.0,92911.0,0.74312433]
[1740977025190,9e-07,92912.0,92911.0,1.45012433]
[1740977030278,0.23630819,92935.0,92912.0,3.441665]
[1740977030490,0.2364289,92935.0,92934.0,0.445264]
[1740977030663,0.2364289,92935.0,92934.0,2.098526]
[1740977030884,0.2364289,92935.0,92934.0,2.179904]
[1740977031132,0.2364289,92935.0,92934.0,2.28874102]
[1740977031336,0.2364289,92935.0,92934.0,2.19304735]
[1740977031485,0.0779,92959.0,92935.0,0.445262]
[1740977031650,0.23630819,92949.0,92942.0,0.524151]
[1740977031891,0.23630819,92949.0,92942.0,3.77465302]
[1740977032153,0.23630819,92949.0,92942.0,3.69575302]
[1740977033069,0.23630819,92949.0,92942.0,3.7280005]
[1740977033273,0.23630819,92949.0,92942.0,3.6222545]
[1740977033416,0.23630819,92949.0,92942.0,2.7593085]
[1740977033620,0.0465,92946.0,92942.0,1.59006048]
[1740977034643,0.3665943,92943.0,92942.0,0.73173948]
[1740977034859,0.3665943,92943.0,92942.0,0.73491706]
[1740977035243,0.3665943,92943.0,92942.0,0.92210206]
[1740977035440,0.3665943,92943.0,92942.0,0.86785506]
[1740977035645,0.3665943,92943.0,92942.0,0.83745306]
[1740977036236,0.4165943,92943.0,92942.0,0.83745306]
[1740977036442,0.4165943,92943.0,92942.0,0.59792706]
[1740977036889,0.4165943,92943.0,92942.0,0.49467606]
[1740977037250,0.4165943,92943.0,92942.0,0.71666706]
[1740977038154,0.4165943,92943.0,92942.0,0.68129006]
[1740977038458,0.4165943,92943.0,92942.0,0.49467606]
[1740977038845,0.4165943,92943.0,92942.0,0.19467606]
[1740977039044,0.4165943,92943.0,92942.0,0.04942506]
[1740977039272,0.4657943,92943.0,92942.0,0.04942506]
[1740977039865,0.4657943,92943.0,92942.0,0.03924748]
[1740977040064,1.01322043,92943.0,92942.0,0.03924748]
[1740977040420,1.26730745,92943.0,92942.0,0.014]
[1740977040563,1.12205745,92943.0,92942.0,0.007]
[1740977040915,1.12205745,92943.0,92942.0,0.017]
[1740977041282,0.0827,92942.0,92936.0,0.14526]
[1740977041476,0.0827,92940.0,92930.0,0.09668445]
[1740977041678,0.00188315,92939.0,92938.0,0.145258]
[1740977041890,0.05188315,92939.0,92938.0,0.145258]
[1740977042284,0.05,92939.0,92938.0,0.145258]
[1740977042692,0.05,92939.0,92938.0,0.15192002]
[1740977043964,0.1,92939.0,92938.0,0.15192002]
[1740977044118,0.10188299,92939.0,92938.0,0.15192002]
[1740977044325,0.10188299,92939.0,92938.0,0.15592002]
[1740977044525,0.10188299,92939.0,92938.0,0.16292002]
[1740977045139,0.10188299,92939.0,92938.0,0.01766202]
[1740977045977,0.88561731,92939.0,92938.0,0.01766202]
[1740977046138,0.88373432,92939.0,92938.0,0.01766202]
[1740977046741,0.88373432,92939.0,92938.0,0.16292002]
[1740977047896,0.83373432,92939.0,92938.0,0.16292002]
[1740977048296,0.88373432,92939.0,92938.0,0.16292002]
[1740977048698,0.83373432,92939.0,92938.0,0.16292002]
[1740977048864,0.88373432,92939.0,92938.0,0.16292002]
[1740977049705,0.83373432,92939.0,92938.0,0.16292002]
[1740977049998,0.88373432,92939.0,92938.0,0.16292002]
[1740977050296,0.83373432,92939.0,92938.0,0.19515836]
[1740977050500,0.88373432,92939.0,92938.0,0.19515836]
[1740977050880,0.83373432,92939.0,92938.0,0.19515836]
[1740977051096,0.83373432,92939.0,92938.0,0.38371536]
[1740977051623,0.88373432,92939.0,92938.0,0.38371536]
[1740977053282,0.83373432,92939.0,92938.0,0.38371536]
[1740977053481,0.88373432,92939.0,92938.0,0.38371536]
[1740977053688,0.83373432,92939.0,92938.0,0.37271536]
[1740977054040,0.78373432,92939.0,92938.0,0.68571536]
[1740977054264,0.23630819,92939.0,92938.0,0.68571536]
[1740977055108,0.23630819,92939.0,92938.0,0.67871536]
[1740977055282,0.23630819,92939.0,92938.0,0.67271536]
[1740977055588,0.23630819,92939.0,92938.0,0.67871536]
[1740977055816,0.23630819,92939.0,92938.0,0.78755238]
[1740977056017,0.23630819,92939.0,92938.0,0.86015238]
[1740977056431,0.23630819,92939.0,92938.0,0.93775238]
[1740977056831,0.23630819,92939.0,92938.0,0.94475238]
[1740977058646,0.23630819,92939.0,92938.0,0.75619538]
[1740977058856,0.23630819,92939.0,92938.0,3.89786038]
[1740977059058,0.23630819,92939.0,92938.0,3.83402338]
[1740977059247,0.23630819,92939.0,92938.0,3.52549938]
[1740977061402,0.23664879,92939.0,92938.0,3.52549938]
[1740977062291,0.23664879,92939.0,92938.0,3.44789938]
[1740977062624,0.23664879,92939.0,92938.0,2.51350338]
[1740977063390,0.23664879,92939.0,92938.0,2.49452038]
[1740977068504,0.28664879,92939.0,92938.0,2.38568336]
[1740977073067,0.28664879,92939.0,92938.0,0.56975836]
[1740977073299,0.28664879,92939.0,92938.0,3.22222136]
[1740977073503,0.33664879,92939.0,92938.0,0.81169736]
[1740977073617,0.33664879,92939.0,92938.0,0.05190036]
[1740977073830,0.46404879,92939.0,92938.0,0.05190036]
[1740977074026,0.46404879,92939.0,92938.0,0.04523834]
[1740977074446,0.46404879,92939.0,92938.0,0.03223834]
[1740977074447,1.01147492,92939.0,92938.0,0.03223834]
[1740977074647,1.01147492,92939.0,92938.0,0.04023834]
[1740977075063,1.01147492,92939.0,92938.0,0.03823834]
[1740977075266,1.01147492,92939.0,92938.0,0.003]
[1740977075461,1.01147492,92939.0,92938.0,0.007]
[1740977076602,1.01147492,92939.0,92938.0,0.152258]
[1740977077005,1.01147492,92939.0,92938.0,0.16064791]
[1740977077218,0.88407492,92939.0,92938.0,0.55792591]
[1740977077596,0.83407492,92939.0,92938.0,0.63343677]
[1740977077918,0.83407492,92939.0,92938.0,0.93343677]
[1740977078147,0.83407492,92939.0,92938.0,0.92670888]
[1740977078321,0.83407492,92939.0,92938.0,0.92370888]
[1740977078552,0.83407492,92939.0,92938.0,0.93570888]
[1740977078687,0.28664879,92939.0,92938.0,0.93570888]
[1740977078887,0.28664879,92939.0,92938.0,0.92370888]
[1740977080236,0.23664879,92939.0,92938.0,0.92370888]
[1740977080732,0.28664879,92939.0,92938.0,0.94367596]
[1740977080959,0.23664879,92939.0,92938.0,0.94967596]
[1740977081960,0.23664879,92939.0,92938.0,1.05851298]
[1740977082370,0.23664879,92939.0,92938.0,1.13960264]
[1740977082570,0.23664879,92939.0,92938.0,1.14071297]
[1740977083783,0.23664879,92939.0,92938.0,0.74143497]
[1740977084524,0.23664879,92939.0,92938.0,3.88309997]
[1740977084743,0.23664879,92939.0,92938.0,3.56474097]
[1740977088461,0.20429873,92939.0,92938.0,3.56474097]
[1740977088657,0.00238611,92943.0,92939.0,0.3]
[1740977088876,0.00238611,92943.0,92942.0,0.445251]
[1740977089081,0.00238611,92943.0,92942.0,3.69575302]
[1740977089415,0.20395813,92948.0,92947.0,0.445244]
[1740977089416,0.20391814,92948.0,92947.0,0.445244]
[1740977089618,0.20391814,92948.0,92947.0,0.55408102]
[1740977089877,0.20391814,92948.0,92947.0,3.69574602]
[1740977090074,0.15540654,92948.0,92947.0,3.771727]
[1740977091444,0.15540654,92948.0,92947.0,3.778727]
[1740977091665,0.15540654,92948.0,92947.0,3.782727]
[1740977094607,0.15540654,92948.0,92947.0,0.641062]
[1740977094935,0.15540654,92948.0,92947.0,3.782727]
[1740977097791,0.15540654,92948.0,92947.0,3.785893]
[1740977097997,0.15540654,92948.0,92947.0,3.80766714]
[1740977098298,0.15574734,92948.0,92947.0,3.80766714]
[1740977098516,0.15574734,92948.0,92947.0,3.81570469]
[1740977098895,0.1234063,92948.0,92947.0,3.81570469]
[1740977099103,0.59742613,92965.0,92964.0,0.445217]
[1740977099438,0.00012071,92965.0,92964.0,0.445217]
[1740977099837,0.00012071,92965.0,92964.0,3.586882]
[1740977100216,0.00012071,92965.0,92964.0,3.65939286]
[1740977100423,0.00012071,92965.0,92964.0,3.49662086]
[1740977100597,0.00012071,92965.0,92964.0,3.29127486]
[1740977101028,0.00012071,92965.0,92964.0,3.19751086]
[1740977101421,0.00012071,92965.0,92964.0,2.89150386]
[1740977101851,0.00012071,92965.0,92964.0,2.89850386]
[1740977102410,0.00012071,92965.0,92964.0,2.90550386]
[1740977103679,0.00012071,92965.0,92964.0,3.09084088]
[1740977103973,0.0003408,92968.0,92966.0,0.445214]
[1740977104157,0.0003408,92968.0,92966.0,3.69571602]
[1740977104962,0.0003408,92968.0,92966.0,3.77058941]
[1740977105137,0.0003408,92968.0,92966.0,3.78062677]
[1740977105659,0.0003408,92968.0,92966.0,0.63896177]
[1740977106066,0.0003408,92968.0,92966.0,3.78062677]
[1740977106430,0.0003408,92968.0,92966.0,3.78762677]
[1740977106629,0.0003408,92968.0,92966.0,3.79462677]
[1740977106842,0.0003408,92968.0,92966.0,3.81667548]
[1740977108088,0.0003408,92968.0,92966.0,3.75830975]
[1740977108250,0.0003408,92968.0,92966.0,1.40371575]
[1740977108454,0.0503406,92967.0,92966.0,1.40371575]
[1740977109053,0.0503406,92967.0,92966.0,0.36350178]
[1740977109253,0.1003406,92967.0,92966.0,0.35346442]
[1740977109462,0.4244406,92967.0,92966.0,0.23720942]
[1740977109717,0.4541406,92967.0,92966.0,0.23720942]
[1740977110025,0.4244406,92967.0,92966.0,0.52047642]
[1740977110182,0.4244406,92967.0,92966.0,0.46867042]
[1740977110390,0.4244406,92967.0,92966.0,0.39088042]
[1740977110956,0.4244406,92967.0,92966.0,0.39788042]
[1740977111109,0.3744406,92967.0,92966.0,0.39788042]
[1740977111312,0.3744406,92967.0,92966.0,0.39088042]
[1740977111534,0.3744406,92967.0,92966.0,0.37839586]
[1740977111724,0.3244406,92967.0,92966.0,0.38339586]
[1740977112119,0.3244406,92967.0,92966.0,0.37839586]
[1740977112515,0.3744406,92967.0,92966.0,0.38539586]
[1740977112645,0.3744406,92967.0,92966.0,0.39239586]
[1740977113688,0.3744406,92967.0,92966.0,0.38539586]
[1740977113888,0.3244406,92967.0,92966.0,0.80123288]
[1740977114101,0.3244406,92967.0,92966.0,0.89387153]
[1740977114394,0.0003406,92967.0,92966.0,0.89387153]
[1740977115755,4.5e-07,92969.0,92968.0,0.445211]
[1740977115999,4.5e-07,92969.0,92968.0,0.55404802]
[1740977116402,0.00030125,92977.0,92976.0,0.445198]
[1740977116598,0.00030125,92977.0,92976.0,3.69570002]
[1740977117601,0.00030125,92977.0,92976.0,3.74190002]
[1740977117802,0.00030125,92977.0,92976.0,3.83452953]
[1740977118013,0.00030125,92977.0,92976.0,3.78832953]
[1740977119162,0.00030125,92977.0,92976.0,3.80232953]
[1740977121280,0.00030125,92977.0,92976.0,2.09603651]
[1740977122717,0.00030125,92977.0,92976.0,1.79603651]
[1740977122942,0.00030125,92977.0,92976.0,1.54210051]
[1740977123149,0.00030125,92977.0,92976.0,1.50437051]
[1740977123417,0.05030125,92977.0,92976.0,1.50437051]
[1740977123621,0.05030125,92977.0,92976.0,1.33483551]
[1740977123769,0.05030125,92977.0,92976.0,1.28088151]
[1740977124745,0.05030125,92977.0,92976.0,0.43260576]
[1740977127691,0.05030125,92977.0,92976.0,0.40556776]
[1740977128120,0.05030125,92977.0,92976.0,0.39004476]
[1740977128274,0.05030125,92977.0,92976.0,0.25993276]
[1740977128676,0.13135686,92977.0,92976.0,0.36174576]
[1740977130102,0.08135686,92977.0,92976.0,0.36174576]
[1740977130508,0.13135686,92977.0,92976.0,0.36174576]
[1740977131499,0.13135686,92977.0,92976.0,0.25993276]
[1740977131723,0.13135686,92977.0,92976.0,0.71520976]
[1740977132159,0.13135686,92977.0,92976.0,0.66385576]
[1740977132335,0.13135686,92977.0,92976.0,0.47587576]
[1740977132509,0.05030125,92977.0,92976.0,0.46061576]
[1740977134172,0.00030125,92977.0,92976.0,0.46061576]
[1740977137342,0.00030125,92977.0,92976.0,0.76061576]
[1740977137986,0.00030125,92977.0,92976.0,0.86945278]
[1740977138195,0.0001704,92987.0,92983.0,0.3]
[1740977138411,0.00057269,92987.0,92986.0,0.445183]
[1740977138877,0.00057269,92987.0,92986.0,3.586848]
[1740977139441,0.00057269,92987.0,92986.0,3.58524]
[1740977139645,0.00057269,92987.0,92986.0,3.58511506]
[1740977139847,0.00057269,92987.0,92986.0,3.78658159]
[1740977140879,0.00057269,92987.0,92986.0,3.79358159]
[1740977141066,0.00057269,92987.0,92986.0,3.80058159]
[1740977141267,0.00057269,92987.0,92986.0,3.80591189]
[1740977141574,0.00057269,92987.0,92986.0,3.69707487]
[1740977141778,0.05057269,92987.0,92986.0,1.23795187]
[1740977142046,0.05057269,92987.0,92986.0,1.17247187]
[1740977142366,0.05057269,92987.0,92986.0,1.16547187]
[1740977142843,0.05057269,92987.0,92986.0,0.86547187]
[1740977143172,0.05057269,92987.0,92986.0,1.16547187]
[1740977143296,0.05057269,92987.0,92986.0,1.17247187]
[1740977144026,0.06194754,92987.0,92986.0,1.13917966]
[1740977144254,0.06194754,92987.0,92986.0,1.08720466]
[1740977144702,0.06194754,92987.0,92986.0,1.09420466]
[1740977147272,0.06194754,92987.0,92986.0,0.63911566]
[1740977147502,0.06194754,92987.0,92986.0,0.52211766]
[1740977147857,0.11194754,92987.0,92986.0,0.22211766]
[1740977148079,0.21472189,92987.0,92986.0,0.22211766]
[1740977148280,0.21472189,92987.0,92986.0,0.21511766]
[1740977148481,0.21660395,92987.0,92986.0,0.21511766]
[1740977148692,0.21660395,92987.0,92986.0,0.22211766]
[1740977148841,0.21660395,92987.0,92986.0,0.21511766]
[1740977149043,0.21660395,92987.0,92986.0,0.20811766]
[1740977149295,0.2052291,92987.0,92986.0,0.20811766]
[1740977149504,0.20334704,92987.0,92986.0,0.21511766]
[1740977149797,0.20334704,92987.0,92986.0,0.2168506]
[1740977150026,0.20334704,92987.0,92986.0,0.25014281]
[1740977150299,0.20334704,92987.0,92986.0,0.26414281]
[1740977150739,0.20334704,92987.0,92986.0,0.25714281]
[1740977150909,0.20334704,92987.0,92986.0,0.26314281]
[1740977151111,0.20334704,92987.0,92986.0,0.2228506]
[1740977152197,0.20334704,92987.0,92986.0,0.2158506]
[1740977152609,0.20334704,92987.0,92986.0,0.2228506]
[1740977155588,0.10057269,92987.0,92986.0,0.2228506]
[1740977156915,0.05057269,92987.0,92986.0,1.0563706]
[1740977157122,0.10057269,92987.0,92986.0,0.2228506]
[1740977157671,0.10057269,92987.0,92986.0,0.26344797]
[1740977157878,0.05057269,92987.0,92986.0,0.26344797]
[1740977158235,0.05057269,92987.0,92986.0,3.06442197]
[1740977158455,0.05057269,92987.0,92986.0,2.90059697]
[1740977158655,0.00057269,92987.0,92986.0,3.14775497]
[1740977158859,0.01194754,92987.0,92986.0,2.51718897]
[1740977159425,0.06194754,92987.0,92986.0,2.51718897]
[1740977159633,0.01194754,92987.0,92986.0,0.56344797]
[1740977159829,0.01194754,92987.0,92986.0,3.28317097]
[1740977160042,0.01194754,92987.0,92986.0,3.34633797]
[1740977160249,0.06194754,92987.0,92986.0,3.27536097]
[1740977160447,0.06194754,92987.0,92986.0,2.82127897]
[1740977160848,0.11194754,92987.0,92986.0,2.04852897]
[1740977161246,0.11194754,92987.0,92986.0,1.89237997]
[1740977161459,0.11194754,92987.0,92986.0,1.10072297]
[1740977161662,0.11194754,92987.0,92986.0,1.14778475]
[1740977161872,0.11194754,92987.0,92986.0,0.94047975]
[1740977162070,0.11194754,92987.0,92986.0,0.66000975]
[1740977162293,0.11194754,92987.0,92986.0,0.21482675]
[1740977162622,0.21472138,92987.0,92986.0,0.36000975]
[1740977162858,0.21472138,92987.0,92986.0,0.21482675]
[1740977163912,0.0474,92991.0,92986.0,0.21482675]
[1740977163913,0.01421788,92991.0,92986.0,0.20249645]
[1740977164181,0.10277384,92987.0,92986.0,0.20249645]
[1740977164328,0.10277384,92987.0,92986.0,0.16223968]
[1740977164530,0.10277384,92987.0,92986.0,0.0656779]
[1740977164733,0.0014664,92989.0,92986.0,0.0596779]
[1740977164934,0.10600429,92987.0,92986.0,0.0646779]
[1740977165184,0.10747069,92987.0,92986.0,0.0646779]
[1740977165370,0.0014664,92987.0,92986.0,0.0646779]
[1740977165549,0.21630771,92987.0,92986.0,0.02545925]
[1740977166017,0.21630771,92987.0,92986.0,0.03245925]
[1740977166402,0.21630771,92987.0,92986.0,0.02045925]
[1740977166893,0.44008871,92987.0,92986.0,0.03345925]
[1740977167098,0.29344131,92987.0,92986.0,0.02745925]
[1740977167241,0.43862231,92987.0,92986.0,0.02445925]
[1740977167442,0.43862231,92987.0,92986.0,0.03145925]
[1740977168044,0.43862231,92987.0,92986.0,0.0113406]
[1740977170819,0.43879261,92987.0,92986.0,0.0113406]
[1740977171794,0.29361161,92987.0,92986.0,0.0113406]
[1740977172501,0.21501161,92987.0,92986.0,0.0113406]
[1740977172799,0.21647801,92987.0,92986.0,0.0113406]
[1740977173148,0.21647801,92987.0,92986.0,0.1565236]
[1740977173292,0.21647801,92987.0,92986.0,0.03148019]
[1740977175171,0.21647801,92987.0,92986.0,0.17666319]
[1740977175354,0.21501161,92987.0,92986.0,0.03148019]
[1740977175505,0.21647801,92987.0,92986.0,0.03148019]
[1740977175926,0.36165901,92987.0,92986.0,0.03148019]
[1740977176127,0.36019261,92987.0,92986.0,0.03148019]
[1740977177035,0.36019261,92987.0,92986.0,0.0113406]
[1740977180448,0.21501161,92987.0,92986.0,0.0113406]
[1740977180601,0.21647801,92987.0,92986.0,0.0073406]
[1740977181183,0.21647801,92987.0,92986.0,0.0003406]
[1740977181377,0.21647801,92987.0,92986.0,0.1455236]
[1740977181604,0.21647801,92987.0,92986.0,0.1495236]
[1740977182010,0.10617459,92987.0,92986.0,0.1455236]
[1740977182403,0.10617459,92987.0,92986.0,0.1495236]
[1740977182580,0.10764099,92987.0,92986.0,0.1495236]
[1740977183001,0.10764099,92987.0,92986.0,0.0003406]
[1740977183351,0.21647801,92987.0,92986.0,0.0073406]
[1740977183570,0.21647801,92987.0,92986.0,0.0093406]
[1740977183940,0.21647801,92987.0,92986.0,0.0073406]
[1740977184146,0.21647801,92987.0,92986.0,0.0103406]
[1740977184548,0.21647801,92987.0,92986.0,0.0033406]
[1740977184753,0.21647801,92987.0,92986.0,0.1485236]
[1740977184953,0.21501161,92987.0,92986.0,0.1555236]
[1740977185331,0.21501161,92987.0,92986.0,0.0103406]
[1740977185650,0.21647801,92987.0,92986.0,0.0103406]
[1740977186016,0.21501161,92987.0,92986.0,0.1555236]
[1740977188123,0.10617459,92987.0,92986.0,0.1555236]
[1740977188534,0.0001703,92987.0,92986.0,0.2380236]
[1740977190192,0.0001703,92987.0,92986.0,0.0928406]
[1740977190401,0.0001703,92987.0,92986.0,0.2380236]
[1740977190608,0.0001703,92987.0,92986.0,0.1555236]
[1740977191006,0.0001703,92987.0,92986.0,0.0103406]
[1740977191235,0.10900732,92987.0,92986.0,0.0103406]
[1740977191645,0.21647718,92987.0,92986.0,0.0103406]
[1740977191865,0.21647718,92987.0,92986.0,0.1555236]
[1740977192010,0.10617376,92987.0,92986.0,0.2385236]
[1740977192219,0.0001703,92987.0,92986.0,0.2385236]
[1740977192440,0.0001703,92987.0,92986.0,0.4717566]
[1740977193911,0.0001703,92987.0,92986.0,0.5188566]
[1740977194788,0.0001703,92987.0,92986.0,0.5118566]
[1740977194987,0.0001703,92987.0,92986.0,0.5158566]
[1740977195192,0.0001703,92987.0,92986.0,0.2896236]
[1740977195528,0.0001703,92987.0,92986.0,1.9316406]
[1740977195674,0.0001703,92987.0,92986.0,2.8684586]
[1740977195874,0.0001703,92987.0,92986.0,2.7604726]
[1740977196293,0.0001703,92987.0,92986.0,1.4270176]
[1740977196501,0.0001703,92987.0,92986.0,0.7975416]
[1740977196999,0.0001703,92987.0,92986.0,0.80568006]
[1740977197956,0.0001703,92987.0,92986.0,1.10568006]
[1740977199665,0.0001703,92987.0,92986.0,1.17812006]
[1740977203343,0.0001703,92987.0,92986.0,1.10568006]
[1740977206467,0.3242703,92987.0,92986.0,1.10568006]
[1740977206883,0.43248811,92987.0,92986.0,1.10568006]
[1740977207674,0.43248811,92987.0,92986.0,0.59776206]
[1740977207870,0.10838811,92987.0,92986.0,2.01255406]
[1740977208127,0.10838811,92987.0,92986.0,0.31904906]
[1740977208427,0.0001703,92987.0,92986.0,0.31904906]
[1740977210619,0.0001703,92987.0,92986.0,0.61904906]
[1740977210879,0.0001703,92987.0,92986.0,0.74924906]
[1740977211344,0.0001703,92987.0,92986.0,0.85808608]
[1740977212663,0.0001703,92987.0,92986.0,0.74924906]
[1740977214236,0.0001703,92987.0,92986.0,0.85808608]
[1740977214992,0.00022221,92991.0,92990.0,0.525476]
[1740977215196,0.00022221,92991.0,92990.0,3.77597802]
[1740977215371,0.00499,92995.0,92990.0,3.77597802]
[1740977215372,5.1e-07,92995.0,92992.0,0.0803]
[1740977215578,5.1e-07,92995.0,92994.0,0.57537]
[1740977215839,5.1e-07,92995.0,92994.0,0.68420702]
[1740977217327,5.1e-07,92995.0,92994.0,0.69120702]
[1740977217922,0.3241,93008.0,92999.0,0.445162]
[1740977218097,0.3241,93008.0,92999.0,3.668827]
[1740977218527,0.3241,93008.0,92999.0,0.527162]
[1740977218726,0.3241,93008.0,92999.0,3.668827]
[1740977219110,0.3241,93008.0,92999.0,3.77766402]
[1740977219316,0.0461406,93032.0,92999.0,3.77766402]
[1740977220284,0.0461406,93032.0,92999.0,3.78466402]
[1740977220507,0.0461406,93032.0,92999.0,3.79166402]
[1740977220861,0.0461406,93032.0,92999.0,3.682827]
[1740977221061,0.145114,93030.0,92999.0,3.682827]
[1740977221274,0.0461406,93032.0,92999.0,3.682827]
[1740977221456,0.1375,93015.0,92999.0,0.576366]
[1740977221807,0.01,93015.0,92999.0,0.652566]
[1740977222345,0.01,93015.0,92999.0,0.876366]
[1740977222589,0.0597,93015.0,92999.0,0.876366]
[1740977223369,0.0597,93015.0,92999.0,0.9726565]
[1740977225036,10.0938523,93000.0,92999.0,0.9726565]
[1740977225465,10.0938523,93000.0,92999.0,1.0477565]
[1740977226154,10.0938523,93000.0,92999.0,0.951466]
[1740977227202,10.0938523,93000.0,92999.0,0.996866]
[1740977228140,10.0938523,93000.0,92999.0,1.10570302]
[1740977228814,9.96514167,93000.0,92999.0,1.10570302]
[1740977228987,9.58950243,93000.0,92999.0,1.10570302]
[1740977229162,9.54250243,93000.0,92999.0,1.10570302]
[1740977229375,9.20164435,93000.0,92999.0,0.73849902]
[1740977229571,9.20164435,93000.0,92999.0,3.88016402]
[1740977229981,9.11041551,93000.0,92999.0,3.88016402]
[1740977230365,9.07808667,93000.0,92999.0,3.88016402]
[1740977231049,9.04575783,93000.0,92999.0,3.88016402]
[1740977231530,8.96290083,93000.0,92999.0,3.88016402]
[1740977231882,8.23307699,93000.0,92999.0,3.93016402]
[1740977232088,7.95574898,93000.0,92999.0,4.63016402]
[1740977232489,7.38481995,93000.0,92999.0,4.63016402]
[1740977232705,7.36481995,93000.0,92999.0,4.63016402]
[1740977232914,6.79389092,93000.0,92999.0,4.62316402]
[1740977233090,6.79389092,93000.0,92999.0,4.61616402]
[1740977233289,5.93791384,93000.0,92999.0,4.62316402]
[1740977233543,5.90559711,93000.0,92999.0,4.63016402]
[1740977233699,5.90559711,93000.0,92999.0,4.58016402]
[1740977233899,5.55856838,93000.0,92999.0,4.63016402]
[1740977234454,5.52625165,93000.0,92999.0,4.58016402]
[1740977234653,5.37903165,93000.0,92999.0,4.63016402]
[1740977234950,5.34671492,93000.0,92999.0,4.63016402]
[1740977235571,5.27380819,93000.0,92999.0,4.63016402]
[1740977236046,5.19158146,93000.0,92999.0,4.63016402]
[1740977236587,5.15926473,93000.0,92999.0,4.63016402]
[1740977237087,5.04047801,93000.0,92999.0,4.63016402]
[1740977237425,3.4935909,93000.0,92999.0,1.48849902]
[1740977237634,3.37278088,93000.0,92999.0,1.48849902]
[1740977237782,2.54632058,93000.0,92999.0,1.48849902]
[1740977237983,2.43270358,93000.0,92999.0,1.51345604]
[1740977238200,1.86177455,93000.0,92999.0,1.48849902]
[1740977238402,1.86177455,93000.0,92999.0,4.83016402]
[1740977238403,0.75323959,93000.0,92999.0,4.83016402]
[1740977238604,0.50207532,93000.0,92999.0,1.71664481]
[1740977238809,0.00499,93021.0,93020.0,0.4767]
[1740977239011,0.00499,93021.0,93020.0,0.80306702]
[1740977239214,4.021e-05,93021.0,93020.0,0.80306702]
[1740977239413,4.021e-05,93021.0,93020.0,3.94473202]
[1740977240229,0.0003406,93032.0,93020.0,3.94473202]
[1740977240230,0.0003406,93032.0,93031.0,0.573512]
[1740977240429,0.00499,93048.0,93040.0,0.527098]
[1740977240773,0.00038099,93041.0,93040.0,3.77760002]
[1740977240983,0.00038099,93041.0,93040.0,3.85000002]
[1740977241110,0.00038099,93041.0,93040.0,3.73423702]
[1740977241311,0.00038099,93041.0,93040.0,3.66993882]
[1740977241538,0.00038099,93041.0,93040.0,3.74233882]
[1740977241947,0.00038099,93041.0,93040.0,3.74933882]
[1740977242150,0.00038099,93041.0,93040.0,3.82573882]
[1740977242327,0.00038099,93041.0,93040.0,3.83780928]
[1740977243923,0.00038099,93041.0,93040.0,3.84476928]
[1740977244126,0.00038099,93041.0,93040.0,3.83076928]
[1740977244354,0.00038099,93041.0,93040.0,3.76136928]
[1740977244919,0.00038099,93041.0,93040.0,3.76836928]
[1740977246742,0.00038099,93041.0,93040.0,3.84426928]
[1740977247906,0.00038099,93041.0,93040.0,3.83726928]
[1740977248146,0.00038099,93041.0,93040.0,3.83026928]
[1740977248296,0.00038099,93041.0,93040.0,3.83726928]
[1740977248504,0.00038099,93041.0,93040.0,3.89406928]
[1740977251513,0.00499,93048.0,93047.0,0.145087]
[1740977251725,1e-08,93048.0,93047.0,3.69558902]
[1740977251932,1e-08,93048.0,93047.0,0.55392402]
[1740977253098,1e-08,93048.0,93047.0,0.56792402]
[1740977253287,0.0755,93077.0,93068.0,0.445055]
[1740977253465,0.01397059,93069.0,93068.0,3.69555702]
[1740977254455,0.01397059,93069.0,93068.0,3.70255702]
[1740977255632,0.01397059,93069.0,93068.0,3.69555702]
[1740977256017,0.01397059,93069.0,93068.0,3.70255702]
[1740977256395,0.01397059,93069.0,93068.0,3.70955702]
[1740977257126,0.32299081,93083.0,93069.0,0.445053]
[1740977257328,0.00039676,93070.0,93069.0,0.55389002]
[1740977257743,0.00039676,93070.0,93069.0,3.69555502]
[1740977259670,0.00039676,93070.0,93069.0,3.70255502]
[1740977259876,0.00039676,93070.0,93069.0,3.70955502]
[1740977260371,0.00039676,93070.0,93069.0,3.70255502]
[1740977260582,0.00039676,93070.0,93069.0,3.70955502]
[1740977263043,0.00039676,93070.0,93069.0,3.78575502]
[1740977264616,0.32299081,93092.0,93073.0,0.445047]
[1740977264818,0.32299081,93092.0,93073.0,3.69554902]
[1740977265602,1e-08,93074.0,93073.0,3.69554902]
[1740977265800,1e-08,93074.0,93073.0,0.55388402]
[1740977266024,1e-08,93074.0,93073.0,0.56088402]
[1740977266243,1e-08,93074.0,93073.0,0.60958402]
[1740977266751,1e-08,93074.0,93073.0,0.61658402]
[1740977268276,1e-08,93074.0,93073.0,0.64024402]
[1740977269656,1e-08,93074.0,93073.0,0.56788402]
[1740977269839,1e-08,93074.0,93073.0,0.64024402]
[1740977271280,1e-08,93074.0,93073.0,0.64028402]
[1740977271923,1e-08,93074.0,93073.0,0.64024402]
[1740977272982,0.07910001,93074.0,93073.0,0.38636]
[1740977273205,0.16605514,93074.0,93073.0,0.314]
[1740977273404,0.07906001,93074.0,93073.0,0.314]
[1740977273716,0.16605514,93074.0,93073.0,0.314]
[1740977273880,0.07906001,93074.0,93073.0,3.455665]
[1740977274083,0.07906001,93074.0,93073.0,3.600712]
[1740977275469,0.07906001,93074.0,93073.0,3.6010524]
[1740977275867,0.07923021,93074.0,93073.0,3.6010524]
[1740977276899,0.0001702,93074.0,93073.0,3.6010524]
[1740977278251,0.0001702,93074.0,93073.0,3.70988942]
[1740977278953,0.0001702,93074.0,93073.0,3.6010524]
[1740977279191,0.0001702,93074.0,93073.0,2.7759854]
[1740977279370,0.1241702,93074.0,93073.0,0.4281254]
[1740977279532,0.1241702,93074.0,93073.0,0.4145474]
[1740977279731,0.1241702,93074.0,93073.0,0.4174374]
[1740977279952,0.21116524,93074.0,93073.0,0.4174374]
[1740977280318,0.21116524,93074.0,93073.0,0.5624844]
[1740977280538,0.21116524,93074.0,93073.0,0.5554844]
[1740977280893,0.21116524,93074.0,93073.0,0.4144374]
[1740977281630,0.21116524,93074.0,93073.0,0.4074374]
[1740977281934,0.21116524,93074.0,93073.0,0.5824224]
[1740977282158,0.21116524,93074.0,93073.0,0.5236224]
[1740977282513,0.21116524,93074.0,93073.0,0.5166224]
[1740977282673,0.21116524,93074.0,93073.0,0.4258034]
[1740977282879,0.21116524,93074.0,93073.0,0.4328034]
[1740977283459,0.21116524,93074.0,93073.0,0.3113404]
[1740977283665,0.53415605,93074.0,93073.0,0.3113404]
[1740977284306,0.41015605,93074.0,93073.0,3.15577242]
[1740977284517,0.41015605,93074.0,93073.0,3.70688942]
[1740977284844,0.32316101,93074.0,93073.0,3.70688942]